fUST/lending_fUST_20250204
["ID","MTS","AMOUNT","RATE_DAILY","PERIOD"]
[351489309,1738600241203,-500.0,0.00016986,2]
[351489311,1738600241212,-532.29,0.00016986,2]
[351489313,1738600241222,-500.0,0.00016986,2]
[351489315,1738600241231,-500.0,0.00016986,2]
[351489316,1738600241241,-500.0,0.00016986,2]
[351489318,1738600241251,-500.0,0.00016986,2]
[351489320,1738600241260,-5011.44,0.00016986,2]
[351489321,1738600241269,-500.0,0.00016986,2]
[351489323,1738600241279,-500.0,0.00016986,2]
[351489325,1738600241288,-673.32,0.00016986,2]
[351489327,1738600241298,-500.0,0.00016986,2]
[351489328,1738600241308,-1001.98,0.00016986,2]
[351489330,1738600241317,-500.0,0.00016986,2]
[351489332,1738600241326,-1666.55,0.00016986,2]
[351489333,1738600241335,-500.0,0.00016986,2]
[351489335,1738600241345,-6139.29,0.00016986,2]
[351489337,1738600241355,-796.47,0.00016986,2]
[351489339,1738600241364,-945.65,0.00016986,2]
[351489340,1738600241374,-500.0,0.00016986,2]
[351489342,1738600241384,-2716.81,0.00016986,2]
[351489344,1738600241393,-500.0,0.00016986,2]
[351489345,1738600241402,-500.0,0.00016986,2]
[351489347,1738600241411,-537.54,0.00016986,2]
[351489349,1738600241421,-500.0,0.00016986,2]
[351489350,1738600241430,-6869.48,0.00016986,2]
[351489352,1738600241443,-13247.45,0.00016986,2]
[351489354,1738600241452,-1326.99,0.00016986,2]
[351489356,1738600241461,-2025.99,0.00016986,2]
[351489357,1738600241470,-664.75,0.00016986,2]
[351489359,1738600241480,-744.54,0.00016986,2]
[351489361,1738600241489,-520.24,0.00016986,2]
[351489362,1738600241498,-1188.32,0.00016986,2]
[351489364,1738600241507,-500.0,0.00016986,2]
[351489366,1738600241516,-682.77,0.00016986,2]
[351489367,1738600241526,-500.0,0.00016986,2]
[351489369,1738600241536,-500.0,0.00016986,2]
[351489371,1738600241546,-3581.81,0.00016986,2]
[351489373,1738600241555,-714.53,0.00016986,2]
[351489374,1738600241564,-1230.96,0.00016986,2]
[351489376,1738600241574,-500.0,0.00016986,2]
[351489378,1738600241584,-1819.07,0.00016986,2]
[351489379,1738600241593,-619.63,0.00016986,2]
[351489381,1738600241603,-3283.48,0.00016986,2]
[351489383,1738600241613,-500.0,0.00016986,2]
[351489385,1738600241622,-1444.08,0.00016986,2]
[351489386,1738600241631,-500.0,0.00016986,2]
[351489388,1738600241640,-500.0,0.00016986,2]
[351489390,1738600241650,-500.0,0.00016986,2]
[351489391,1738600241659,-700.57,0.00016986,2]
[351489393,1738600241668,-500.0,0.00016986,2]
[351489395,1738600241678,-500.0,0.00016986,2]
[351489396,1738600241689,-10000.0,0.00017,2]
[351489398,1738600241698,-10000.0,0.00017,2]
[351489400,1738600241707,-10000.0,0.00017,2]
[351489402,1738600241717,-7449.0,0.00017,2]
[351489403,1738600241727,-179.50388425,0.00017023,2]
[351489405,1738600241736,-1542.04563541,0.00017023,2]
[351489407,1738600241745,-600.0,0.00017068,2]
[351489408,1738600241755,-280.0,0.0001709,2]
[351489410,1738600241764,-496.42884982,0.00017122,2]
[351489412,1738600241775,-500.0,0.00017123,2]
[351489413,1738600241784,-500.0,0.00017123,2]
[351489415,1738600241794,-558.6,0.00017123,2]
[351489417,1738600241806,-997.43,0.00017123,2]
[351489418,1738600241815,-500.0,0.00017123,2]
[351489420,1738600241824,-500.0,0.00017123,2]
[351489422,1738600241834,-500.0,0.00017123,2]
[351489423,1738600241844,-500.0,0.00017123,2]
[351489425,1738600241854,-500.0,0.00017123,2]
[351489427,1738600241863,-532.29,0.00017123,2]
[351489429,1738600241873,-500.0,0.00017123,2]
[351489430,1738600241883,-500.0,0.00017123,2]
[351489432,1738600241893,-500.0,0.00017123,2]
[351489434,1738600241902,-457.36680973,0.00017123,2]
[351489435,1738600241912,-5011.44,0.00017123,2]
[351489437,1738600241921,-500.0,0.00017123,2]
[351489439,1738600241930,-500.0,0.00017123,2]
[351489440,1738600241942,-673.32,0.00017123,2]
[351489442,1738600241952,-500.0,0.00017123,2]
[351489444,1738600241962,-1001.98,0.00017123,2]
[351489446,1738600241971,-500.0,0.00017123,2]
[351489447,1738600241981,-1666.55,0.00017123,2]
[351489449,1738600241991,-500.0,0.00017123,2]
[351489451,1738600242000,-6139.29,0.00017123,2]
[351489452,1738600242010,-796.47,0.00017123,2]
[351489454,1738600242020,-945.65,0.00017123,2]
[351489456,1738600242029,-500.0,0.00017123,2]
[351489457,1738600242039,-2716.81,0.00017123,2]
[351489459,1738600242048,-500.0,0.00017123,2]
[351489461,1738600242058,-500.0,0.00017123,2]
[351489463,1738600242068,-537.54,0.00017123,2]
[351489464,1738600242077,-500.0,0.00017123,2]
[351489466,1738600242087,-6869.48,0.00017123,2]
[351489468,1738600242096,-13247.45,0.00017123,2]
[351489469,1738600242105,-1326.99,0.00017123,2]
[351489471,1738600242115,-2025.99,0.00017123,2]
[351489473,1738600242124,-664.75,0.00017123,2]
[351489474,1738600242134,-744.54,0.00017123,2]
[351489476,1738600242143,-520.24,0.00017123,2]
[351489478,1738600242152,-1188.32,0.00017123,2]
[351489479,1738600242161,-500.0,0.00017123,2]
[351489481,1738600242171,-682.77,0.00017123,2]
[351489483,1738600242181,-500.0,0.00017123,2]
[351489485,1738600242194,-500.0,0.00017123,2]
[351489486,1738600242204,-3581.81,0.00017123,2]
[351489488,1738600242213,-714.53,0.00017123,2]
[351489490,1738600242224,-1230.96,0.00017123,2]
[351489491,1738600242234,-500.0,0.00017123,2]
[351489493,1738600242243,-1819.07,0.00017123,2]
[351489495,1738600242254,-619.63,0.00017123,2]
[351489496,1738600242265,-3283.48,0.00017123,2]
[351489498,1738600242275,-500.0,0.00017123,2]
[351489500,1738600242286,-1444.08,0.00017123,2]
[351489501,1738600242297,-420.0,0.00017123,2]
[351489503,1738600242307,-500.0,0.00017123,2]
[351489504,1738600242319,-500.0,0.00017123,2]
[351489506,1738600242330,-700.57,0.00017123,2]
[351489507,1738600242341,-500.0,0.00017123,2]
[351489509,1738600242352,-500.0,0.00017123,2]
[351489510,1738600242362,-13099.03041793,0.00017202,2]
[351489512,1738600242372,-500.0,0.0001726,2]
[351489513,1738600242382,-500.0,0.0001726,2]
[351489515,1738600242391,-558.6,0.0001726,2]
[351489517,1738600242401,-997.43,0.0001726,2]
[351489518,1738600242412,-500.0,0.0001726,2]
[351489520,1738600242422,-500.0,0.0001726,2]
[351489521,1738600242432,-500.0,0.0001726,2]
[351489523,1738600242447,-500.0,0.0001726,2]
[351489525,1738600242458,-500.0,0.0001726,2]
[351489526,1738600242467,-532.29,0.0001726,2]
[351489528,1738600242478,-500.0,0.0001726,2]
[351489530,1738600242490,-500.0,0.0001726,2]
[351489531,1738600242500,-500.0,0.0001726,2]
[351489533,1738600242509,-5011.44,0.0001726,2]
[351489534,1738600242518,-500.0,0.0001726,2]
[351489536,1738600242528,-673.32,0.0001726,2]
[351489538,1738600242539,-500.0,0.0001726,2]
[351489539,1738600242548,-1001.98,0.0001726,2]
[351489541,1738600242557,-500.0,0.0001726,2]
[351489543,1738600242566,-1666.55,0.0001726,2]
[351489544,1738600242575,-500.0,0.0001726,2]
[351489546,1738600242585,-6139.29,0.0001726,2]
[351489547,1738600242595,-796.47,0.0001726,2]
[351489549,1738600242605,-945.65,0.0001726,2]
[351489552,1738600242615,-500.0,0.0001726,2]
[351489554,1738600242624,-2716.81,0.0001726,2]
[351489555,1738600242634,-500.0,0.0001726,2]
[351489557,1738600242644,-500.0,0.0001726,2]
[351489559,1738600242653,-537.54,0.0001726,2]
[351489560,1738600242663,-500.0,0.0001726,2]
[351489563,1738600242672,-6869.48,0.0001726,2]
[351489566,1738600242682,-13247.45,0.0001726,2]
[351489567,1738600242695,-1326.99,0.0001726,2]
[351489569,1738600242704,-2025.99,0.0001726,2]
[351489571,1738600242713,-664.75,0.0001726,2]
[351489573,1738600242722,-744.54,0.0001726,2]
[351489575,1738600242731,-520.24,0.0001726,2]
[351489577,1738600242740,-1188.32,0.0001726,2]
[351489579,1738600242749,-500.0,0.0001726,2]
[351489580,1738600242758,-682.77,0.0001726,2]
[351489582,1738600242768,-500.0,0.0001726,2]
[351489584,1738600242778,-500.0,0.0001726,2]
[351489586,1738600242788,-3581.81,0.0001726,2]
[351489588,1738600242797,-714.53,0.0001726,2]
[351489590,1738600242811,-1230.96,0.0001726,2]
[351489592,1738600242820,-500.0,0.0001726,2]
[351489594,1738600242830,-1819.07,0.0001726,2]
[351489596,1738600242839,-619.63,0.0001726,2]
[351489599,1738600242848,-3283.48,0.0001726,2]
[351489601,1738600242858,-500.0,0.0001726,2]
[351489603,1738600242868,-1444.08,0.0001726,2]
[351489606,1738600242878,-500.0,0.0001726,2]
[351489607,1738600242887,-500.0,0.0001726,2]
[351489609,1738600242896,-700.57,0.0001726,2]
[351489610,1738600242905,-500.0,0.0001726,2]
[351489612,1738600242914,-500.0,0.0001726,2]
[351489613,1738600242923,-600.0,0.0001728,2]
[351489615,1738600242933,-500.0,0.00017397,2]
[351489616,1738600242946,-171.35540949,0.00017397,2]
[351489617,1738600242955,-558.6,0.00017397,2]
[351489619,1738600242966,-997.43,0.00017397,2]
[351489620,1738600242975,-500.0,0.00017397,2]
[351489621,1738600242985,-500.0,0.00017397,2]
[351489622,1738600242996,-500.0,0.00017397,2]
[351489624,1738600243005,-500.0,0.00017397,2]
[351489626,1738600243015,-500.0,0.00017397,2]
[351489628,1738600243024,-532.29,0.00017397,2]
[351489630,1738600243034,-500.0,0.00017397,2]
[351489631,1738600243043,-500.0,0.00017397,2]
[351489632,1738600243053,-500.0,0.00017397,2]
[351489633,1738600243063,-5011.44,0.00017397,2]
[351489634,1738600243072,-500.0,0.00017397,2]
[351489635,1738600243081,-673.32,0.00017397,2]
[351489636,1738600243091,-500.0,0.00017397,2]
[351489637,1738600243100,-1001.98,0.00017397,2]
[351489638,1738600243110,-500.0,0.00017397,2]
[351489639,1738600243119,-1666.55,0.00017397,2]
[351489640,1738600243128,-500.0,0.00017397,2]
[351489641,1738600243137,-6139.29,0.00017397,2]
[351489642,1738600243146,-796.47,0.00017397,2]
[351489643,1738600243156,-945.65,0.00017397,2]
[351489644,1738600243165,-500.0,0.00017397,2]
[351489645,1738600243174,-2716.81,0.00017397,2]
[351489646,1738600243183,-500.0,0.00017397,2]
[351489647,1738600243196,-500.0,0.00017397,2]
[351489648,1738600243205,-537.54,0.00017397,2]
[351489649,1738600243214,-500.0,0.00017397,2]
[351489650,1738600243223,-6869.48,0.00017397,2]
[351489651,1738600243231,-13247.45,0.00017397,2]
[351489652,1738600243241,-1326.99,0.00017397,2]
[351489653,1738600243250,-2025.99,0.00017397,2]
[351489654,1738600243259,-664.75,0.00017397,2]
[351489655,1738600243268,-744.54,0.00017397,2]
[351489656,1738600243277,-520.24,0.00017397,2]
[351489657,1738600243286,-1188.32,0.00017397,2]
[351489658,1738600243295,-500.0,0.00017397,2]
[351489659,1738600243306,-682.77,0.00017397,2]
[351489660,1738600243315,-500.0,0.00017397,2]
[351489661,1738600243326,-500.0,0.00017397,2]
[351489662,1738600243336,-3581.81,0.00017397,2]
[351489664,1738600243345,-714.53,0.00017397,2]
[351489665,1738600243354,-1230.96,0.00017397,2]
[351489666,1738600243364,-1819.07,0.00017397,2]
[351489667,1738600243373,-500.0,0.00017397,2]
[351489668,1738600243382,-619.63,0.00017397,2]
[351489670,1738600243391,-3283.48,0.00017397,2]
[351489671,1738600243400,-500.0,0.00017397,2]
[351489673,1738600243410,-1444.08,0.00017397,2]
[351489675,1738600243419,-500.0,0.00017397,2]
[351489677,1738600243429,-500.0,0.00017397,2]
[351489679,1738600243442,-700.57,0.00017397,2]
[351489681,1738600243451,-500.0,0.00017397,2]
[351489683,1738600243460,-179.50388425,0.00017434,2]
[351489685,1738600243471,-768.6559825,0.0001746,2]
[351489687,1738600243480,-1000.0,0.00017462,2]
[351489689,1738600243489,-11165.01077346,0.000175,5]
[351489691,1738600243499,-63642.90945549,0.000175,15]
[351489698,1738600243552,-49319.20000001,0.000175,15]
[351489706,1738600243621,-500.0,0.00016438,2]
[351489708,1738600243630,-500.0,0.00016438,2]
[351489710,1738600243639,-500.0,0.00016575,2]
[351489711,1738600243648,-500.0,0.00016575,2]
[351489712,1738600243658,-500.0,0.00016712,2]
[351489714,1738600243667,-500.0,0.00016712,2]
[351489716,1738600243676,-511.6258138,0.00016849,2]
[351489728,1738600243685,-29241.98475515,0.000175,15]
[351489730,1738600243803,-34023.86,0.000175,15]
[351489732,1738600243813,-29248.80867498,0.000175,15]
[351490005,1738600246563,-194.80077763,0.00016711,2]
[351490006,1738600246573,-500.0,0.00016711,2]
[351490009,1738600246584,-407.57474546,0.00016711,2]
[351490010,1738600246594,-399.39812613,0.00016711,2]
[351490012,1738600246604,-500.0,0.00016711,2]
[351490014,1738600246615,-500.0,0.00016711,2]
[351490016,1738600246624,-500.0,0.00016711,2]
[351490018,1738600246634,-425.1958186,0.00016711,2]
[351490020,1738600246644,-396.0,0.00016825,2]
[351490022,1738600246653,-500.0,0.00016849,2]
[351490024,1738600246663,-153.0,0.0001692,2]
[351490026,1738600246673,-20872.62229278,0.000175,15]
[351490028,1738600246685,-2936.1611876,0.000175,15]
[351491123,1738600462443,555.0,0.00016,10]
[351491131,1738600625861,192.838399,0.00013699,2]
[351491132,1738600627551,356.958346,0.00013973,2]
[351491171,1738601279884,308.97,0.00010959,2]
[351491183,1738601432466,-300.0,0.00015182,2]
[351491184,1738601432477,-2962.67191796,0.00015183,2]
[351491185,1738601432490,-2563.96343695,0.00015183,2]
[351491415,1738601438411,-19373.36464509,0.00015183,2]
[351491418,1738601438420,-984.0,0.000153,2]
[351491420,1738601438429,-2699.6477066,0.00015319,2]
[351491421,1738601438439,-205.2061554,0.00015388,2]
[351491424,1738601438448,-2889.00264944,0.00016,2]
[351491426,1738601438457,-256.03679004,0.00016338,2]
[351491427,1738601438467,-287.32821101,0.00016428,2]
[351491430,1738601438479,-500.0,0.00016438,2]
[351491432,1738601438488,-500.0,0.00016438,2]
[351491434,1738601438497,-500.0,0.00016438,2]
[351491436,1738601438506,-955.87,0.00016438,2]
[351491438,1738601438516,-500.0,0.00016438,2]
[351491441,1738601438525,-500.0,0.00016438,2]
[351491444,1738601438535,-500.0,0.00016438,2]
[351491447,1738601438545,-500.0,0.00016438,2]
[351491451,1738601438554,-257.17410142,0.00016438,2]
[351491455,1738601438563,-500.0,0.00016438,2]
[351491459,1738601438572,-500.0,0.00016438,2]
[351491461,1738601438581,-510.11,0.00016438,2]
[351491463,1738601438591,-500.0,0.00016438,2]
[351491465,1738601438601,-500.0,0.00016438,2]
[351491467,1738601438610,-500.0,0.00016438,2]
[351491469,1738601438619,-500.0,0.00016438,2]
[351491471,1738601438629,-518.3994892,0.00016438,2]
[351491473,1738601438640,-500.0,0.00016438,2]
[351491475,1738601438649,-500.0,0.00016438,2]
[351491477,1738601438659,-500.0,0.00016438,2]
[351491479,1738601438668,-500.0,0.00016438,2]
[351491481,1738601438677,-4802.63,0.00016438,2]
[351491483,1738601438686,-500.0,0.00016438,2]
[351491485,1738601438695,-345.56525585,0.00016438,2]
[351491487,1738601438704,-763.28,0.00016438,2]
[351491489,1738601438714,-500.0,0.00016438,2]
[351491491,1738601438723,-645.26,0.00016438,2]
[351491493,1738601438731,-515.14,0.00016438,2]
[351491495,1738601438741,-500.0,0.00016438,2]
[351491497,1738601438750,-1271.7,0.00016438,2]
[351491499,1738601438759,-6583.25,0.00016438,2]
[351491501,1738601438769,-500.0,0.00016438,2]
[351491503,1738601438778,-637.05,0.00016438,2]
[351491505,1738601438787,-1138.81,0.00016438,2]
[351491507,1738601438796,-500.0,0.00016438,2]
[351491509,1738601438805,-1941.58,0.00016438,2]
[351491511,1738601438814,-500.0,0.00016438,2]
[351491513,1738601438824,-500.0,0.00016438,2]
[351491515,1738601438833,-500.0,0.00016438,2]
[351491517,1738601438842,-500.0,0.00016438,2]
[351491519,1738601438851,-500.0,0.00016438,2]
[351491521,1738601438861,-12695.47,0.00016438,2]
[351491523,1738601438870,-654.32,0.00016438,2]
[351491525,1738601438879,-452.7874046,0.00016438,2]
[351491527,1738601438891,-684.76,0.00016438,2]
[351491529,1738601438900,-713.52,0.00016438,2]
[351491531,1738601438909,-204.20638549,0.00016438,2]
[351491533,1738601438918,-500.0,0.00016438,2]
[351491535,1738601438927,-500.0,0.00016438,2]
[351491537,1738601438937,-1102.04,0.00016438,2]
[351491539,1738601438946,-500.0,0.00016438,2]
[351491541,1738601438955,-3146.67,0.00016438,2]
[351491543,1738601438964,-1402.15,0.00016438,2]
[351491545,1738601438974,-500.0,0.00016438,2]
[351491547,1738601438984,-500.0,0.00016438,2]
[351491549,1738601438993,-500.0,0.00016438,2]
[351491551,1738601439004,-700.57,0.00016438,2]
[351491553,1738601439013,-1503.61,0.00016438,2]
[351491555,1738601439023,-500.0,0.00016438,2]
[351491557,1738601439032,-500.0,0.00016438,2]
[351491559,1738601439043,-188.06988654,0.00016438,2]
[351491561,1738601439053,-561.58,0.00016438,2]
[351491563,1738601439064,-3432.57,0.00016438,2]
[351491565,1738601439074,-593.81,0.00016438,2]
[351491567,1738601439085,-960.23,0.00016438,2]
[351491569,1738601439095,-5883.49,0.00016438,2]
[351491571,1738601439105,-500.0,0.00016438,2]
[351491573,1738601439115,-1597.11,0.00016438,2]
[351491575,1738601439126,-500.0,0.00016438,2]
[351491577,1738601439138,-1295.64,0.00016438,2]
[351491579,1738601439148,-500.0,0.00016438,2]
[351491581,1738601439158,-1743.28,0.00016438,2]
[351491583,1738601439168,-2603.61,0.00016438,2]
[351491585,1738601439178,-500.0,0.000165,7]
[351491587,1738601439188,-320.63,0.000165,7]
[351491589,1738601439201,-547.68,0.00016575,2]
[351491591,1738601439212,-239.77857216,0.00016575,2]
[351491593,1738601439221,-500.0,0.00016575,2]
[351491595,1738601439234,-955.87,0.00016575,2]
[351491597,1738601439247,-500.0,0.00016575,2]
[351491599,1738601439257,-500.0,0.00016575,2]
[351491601,1738601439267,-500.0,0.00016575,2]
[351491603,1738601439280,-500.0,0.00016575,2]
[351491605,1738601439291,-500.0,0.00016575,2]
[351491607,1738601439304,-500.0,0.00016575,2]
[351491609,1738601439315,-510.11,0.00016575,2]
[351491611,1738601439328,-500.0,0.00016575,2]
[351491613,1738601439339,-500.0,0.00016575,2]
[351491615,1738601439351,-500.0,0.00016575,2]
[351491617,1738601439363,-500.0,0.00016575,2]
[351491620,1738601439374,-500.0,0.00016575,2]
[351491621,1738601439390,-500.0,0.00016575,2]
[351491624,1738601439400,-500.0,0.00016575,2]
[351491626,1738601439410,-500.0,0.00016575,2]
[351491628,1738601439421,-4802.63,0.00016575,2]
[351491630,1738601439431,-500.0,0.00016575,2]
[351491631,1738601439441,-763.28,0.00016575,2]
[351491634,1738601439453,-500.0,0.00016575,2]
[351491635,1738601439463,-645.26,0.00016575,2]
[351491637,1738601439474,-515.14,0.00016575,2]
[351491639,1738601439485,-500.0,0.00016575,2]
[351491641,1738601439495,-1271.7,0.00016575,2]
[351491644,1738601439505,-6583.25,0.00016575,2]
[351491646,1738601439515,-500.0,0.00016575,2]
[351491648,1738601439526,-637.05,0.00016575,2]
[351491650,1738601439535,-1138.81,0.00016575,2]
[351491652,1738601439544,-500.0,0.00016575,2]
[351491654,1738601439555,-1941.58,0.00016575,2]
[351491656,1738601439565,-500.0,0.00016575,2]
[351491658,1738601439575,-500.0,0.00016575,2]
[351491660,1738601439584,-500.0,0.00016575,2]
[351491662,1738601439598,-500.0,0.00016575,2]
[351491664,1738601439608,-524.96188372,0.00016575,2]
[351491665,1738601439618,-12695.47,0.00016575,2]
[351491667,1738601439629,-654.32,0.00016575,2]
[351491669,1738601439643,-684.76,0.00016575,2]
[351491671,1738601439654,-713.52,0.00016575,2]
[351491674,1738601439665,-500.0,0.00016575,2]
[351491676,1738601439676,-500.0,0.00016575,2]
[351491678,1738601439687,-1102.04,0.00016575,2]
[351491680,1738601439697,-500.0,0.00016575,2]
[351491682,1738601439707,-3146.67,0.00016575,2]
[351491684,1738601439718,-1402.15,0.00016575,2]
[351491685,1738601439728,-500.0,0.00016575,2]
[351491688,1738601439739,-500.0,0.00016575,2]
[351491690,1738601439749,-500.0,0.00016575,2]
[351491692,1738601439761,-700.57,0.00016575,2]
[351491693,1738601439774,-1503.61,0.00016575,2]
[351491696,1738601439786,-500.0,0.00016575,2]
[351491698,1738601439797,-500.0,0.00016575,2]
[351491700,1738601439808,-561.58,0.00016575,2]
[351491702,1738601439818,-3432.57,0.00016575,2]
[351491704,1738601439830,-593.81,0.00016575,2]
[351491707,1738601439841,-960.23,0.00016575,2]
[351491709,1738601439851,-5883.49,0.00016575,2]
[351491711,1738601439863,-500.0,0.00016575,2]
[351491713,1738601439874,-1597.11,0.00016575,2]
[351491715,1738601439887,-500.0,0.00016575,2]
[351491717,1738601439898,-1295.64,0.00016575,2]
[351491719,1738601439909,-500.0,0.00016575,2]
[351491721,1738601439920,-1743.28,0.00016575,2]
[351491723,1738601439931,-2603.61,0.00016575,2]
[351491725,1738601439942,-235.85497945,0.00016612,2]
[351491727,1738601439952,-420.0,0.00016613,2]
[351491729,1738601439963,-2999.99999901,0.000167,2]
[351491731,1738601439974,-500.0,0.00016712,2]
[351491733,1738601439984,-955.87,0.00016712,2]
[351491735,1738601439994,-500.0,0.00016712,2]
[351491737,1738601440005,-500.0,0.00016712,2]
[351491739,1738601440015,-500.0,0.00016712,2]
[351491741,1738601440025,-500.0,0.00016712,2]
[351491743,1738601440035,-230.38198853,0.00016712,2]
[351491745,1738601440044,-500.0,0.00016712,2]
[351491747,1738601440054,-510.11,0.00016712,2]
[351491749,1738601440065,-500.0,0.00016712,2]
[351491751,1738601440077,-500.0,0.00016712,2]
[351491753,1738601440088,-500.0,0.00016712,2]
[351491755,1738601440099,-500.0,0.00016712,2]
[351491756,1738601440111,-500.0,0.00016712,2]
[351491758,1738601440121,-500.0,0.00016712,2]
[351491760,1738601440135,-500.0,0.00016712,2]
[351491762,1738601440146,-500.0,0.00016712,2]
[351491764,1738601440158,-4802.63,0.00016712,2]
[351491766,1738601440170,-500.0,0.00016712,2]
[351491768,1738601440181,-763.28,0.00016712,2]
[351491771,1738601440192,-500.0,0.00016712,2]
[351491772,1738601440206,-645.26,0.00016712,2]
[351491774,1738601440218,-515.14,0.00016712,2]
[351491777,1738601440233,-500.0,0.00016712,2]
[351491779,1738601440245,-1271.7,0.00016712,2]
[351491780,1738601440255,-6583.25,0.00016712,2]
[351491782,1738601440266,-500.0,0.00016712,2]
[351491784,1738601440278,-637.05,0.00016712,2]
[351491786,1738601440289,-1138.81,0.00016712,2]
[351491788,1738601440300,-500.0,0.00016712,2]
[351491790,1738601440312,-1941.58,0.00016712,2]
[351491792,1738601440323,-500.0,0.00016712,2]
[351491794,1738601440333,-500.0,0.00016712,2]
[351491796,1738601440344,-500.0,0.00016712,2]
[351491798,1738601440361,-500.0,0.00016712,2]
[351491800,1738601440371,-12695.47,0.00016712,2]
[351491802,1738601440385,-654.32,0.00016712,2]
[351491804,1738601440396,-684.76,0.00016712,2]
[351491806,1738601440407,-713.52,0.00016712,2]
[351491808,1738601440417,-500.0,0.00016712,2]
[351491810,1738601440427,-500.0,0.00016712,2]
[351491812,1738601440438,-1102.04,0.00016712,2]
[351491814,1738601440448,-500.0,0.00016712,2]
[351491816,1738601440460,-3146.67,0.00016712,2]
[351491818,1738601440471,-1402.15,0.00016712,2]
[351491820,1738601440482,-500.0,0.00016712,2]
[351491822,1738601440493,-500.0,0.00016712,2]
[351491824,1738601440504,-500.0,0.00016712,2]
[351491826,1738601440514,-700.57,0.00016712,2]
[351491828,1738601440525,-1503.61,0.00016712,2]
[351491830,1738601440536,-493.42991784,0.00016712,2]
[351491832,1738601440546,-500.0,0.00016712,2]
[351491834,1738601440556,-561.58,0.00016712,2]
[351491836,1738601440567,-3432.57,0.00016712,2]
[351491838,1738601440578,-593.81,0.00016712,2]
[351491840,1738601440588,-960.23,0.00016712,2]
[351491842,1738601440598,-5883.49,0.00016712,2]
[351491844,1738601440608,-500.0,0.00016712,2]
[351491846,1738601440618,-1597.11,0.00016712,2]
[351491848,1738601440629,-500.0,0.00016712,2]
[351491850,1738601440644,-1295.64,0.00016712,2]
[351491851,1738601440656,-500.0,0.00016712,2]
[351491852,1738601440667,-1743.28,0.00016712,2]
[351491853,1738601440679,-2603.61,0.00016712,2]
[351491854,1738601440689,-235.85497941,0.00016809,2]
[351491855,1738601440700,-500.0,0.00016848,2]
[351491856,1738601440710,-227.77287189,0.00016848,2]
[351491857,1738601440720,-500.0,0.00016848,2]
[351491864,1738601440731,-549.955847,0.00016848,2]
[351491866,1738601440875,-500.0,0.00016848,2]
[351491868,1738601440888,-417.22173424,0.00016848,2]
[351491870,1738601440900,-500.0,0.00016848,2]
[351491872,1738601440912,-500.0,0.00016848,2]
[351491874,1738601440922,-500.0,0.00016848,2]
[351491876,1738601440931,-230.14379352,0.00016848,2]
[351491878,1738601440941,-358.83646619,0.00016848,2]
[351491880,1738601440951,-500.0,0.00016848,2]
[351491882,1738601440961,-500.0,0.00016849,2]
[351491884,1738601440972,-565.41,0.00016849,2]
[351491886,1738601440983,-187.745,0.00016849,2]